bitfinex/quotes_ETHUSD_20251201
["timestamp","ask_amount","ask_price","bid_price","bid_amount"]
[1764610909318,4.41028906,2746.6,2746.5,0.001]
[1764610909627,5.71488317,2746.6,2746.5,0.001]
[1764610910903,5.13588317,2746.6,2746.5,0.001]
[1764610911110,6.59254632,2746.6,2746.5,0.001]
[1764610911741,17.10205334,2746.6,2746.5,0.001]
[1764610912314,26.98717533,2746.6,2746.5,0.001]
[1764610915348,25.74991233,2746.6,2746.5,0.001]
[1764610918457,0.36392,2745.8,2745.0,3.91701086]
[1764610918659,1.13109811,2746.5,2745.0,3.91701086]
[1764610918660,0.36392,2745.7,2745.0,3.91701086]
[1764610920283,3.64219114,2745.6,2745.0,7.5599981]
[1764610920487,3.64219114,2745.6,2745.1,0.75599981]
[1764610920623,0.36392,2746.1,2745.1,0.75599981]
[1764610921219,0.36392,2746.0,2745.1,0.75599981]
[1764610922322,3.64179321,2745.9,2745.1,4.39882725]
[1764610922628,3.64179321,2745.9,2745.2,0.46728573]
[1764610922629,0.36392,2745.7,2745.2,0.46728573]
[1764610923154,10.92537963,2745.9,2745.1,0.75599981]
[1764610923330,0.36392,2745.5,2745.0,0.27403001]
[1764610924427,7.28491294,2745.4,2745.0,0.27403001]
[1764610925541,3.64245647,2745.4,2745.0,0.27403001]
[1764610925743,7.28491294,2745.4,2745.0,0.27403001]
[1764610925942,8.37732423,2745.4,2745.0,0.27403001]
[1764610926348,4.00677454,2745.1,2745.0,0.27403001]
[1764610928135,0.36392,2745.1,2745.0,0.27403001]
[1764610928336,4.00677454,2745.1,2745.0,0.27503001]
[1764610928663,0.36392,2745.1,2745.0,0.27503001]
[1764610929378,4.37100069,2745.4,2745.0,0.27503001]
[1764610929379,3.84205537,2745.3,2745.0,0.27503001]
[1764610929535,7.48470253,2745.3,2745.0,0.27503001]
[1764610930550,8.30602191,2745.3,2745.0,0.27503001]
[1764610930756,4.66337475,2745.3,2745.0,0.27503001]
[1764610931365,0.405504,2745.2,2745.0,0.27503001]
[1764610931666,0.36392,2745.1,2745.0,0.27503001]
[1764610932769,4.00677454,2745.1,2745.0,0.27503001]
[1764610932969,5.66416776,2745.1,2745.0,0.27503001]
[1764610933166,6.38928384,2745.1,2745.0,0.27503001]
[1764610934767,6.02584187,2745.1,2745.0,0.27503001]
[1764610934968,6.80425008,2745.1,2745.0,0.27503001]
[1764610936341,17.19145064,2745.1,2745.0,0.27503001]
[1764610937088,0.5052081,2744.8,2744.7,0.001]
[1764610937238,0.5052081,2744.8,2744.4,0.001]
[1764610937239,11.88174064,2744.5,2744.4,0.001]
[1764610937579,19.35093864,2744.5,2744.4,0.001]
[1764610938060,0.405504,2744.2,2742.5,0.579]
[1764610938250,11.88174064,2743.6,2741.5,0.001]
[1764610938570,11.88174064,2743.6,2741.8,3.64719436]
[1764610938571,0.60491221,2743.4,2741.8,3.64719436]
[1764610938741,4.97561822,2743.4,2741.5,0.001]
[1764610939367,5.45491411,2743.4,2741.7,0.72559411]
[1764610940647,1.80980221,2743.4,2741.7,0.72559411]
[1764610940847,1.80980221,2743.4,2741.9,0.72559411]
[1764610941050,0.92500232,2743.4,2742.1,1.30459411]
[1764610941260,0.36344197,2743.6,2742.1,1.30459411]
[1764610942473,0.36344197,2743.5,2742.1,1.30459411]
[1764610942885,0.36344197,2743.5,2742.3,0.72559411]
[1764610943395,0.0997041,2744.2,2742.6,0.72559411]
[1764610943688,0.36344197,2744.1,2742.8,0.72559411]
[1764610944567,0.72559411,2744.7,2742.8,0.72559411]
[1764610944770,0.36344197,2744.3,2743.0,0.72659411]
[1764610944981,0.36344197,2744.4,2743.2,0.72559411]
[1764610945296,0.0997041,2744.7,2743.4,0.72559411]
[1764610945475,0.36344197,2745.1,2743.8,0.72559411]
[1764610945785,0.579,2745.4,2743.8,0.72559411]
[1764610945786,0.0997041,2745.3,2743.9,1.11127947]
[1764610946079,0.002,2744.6,2743.9,1.11127947]
[1764610946479,0.002,2744.6,2743.9,1.69027947]
[1764610946681,0.002,2744.6,2744.0,0.24158736]
[1764610946885,0.002,2744.6,2744.2,0.72559411]
[1764610948695,0.002,2744.6,2744.3,0.14600858]
[1764610948908,0.002,2744.6,2744.4,7.2875674]
[1764610951708,0.002,2744.6,2744.5,1.30459411]
[1764610951906,0.002,2744.6,2744.5,2.17841112]
[1764610952348,0.002,2744.9,2744.6,0.405504]
[1764610952495,0.002,2744.9,2744.6,0.94226918]
[1764610952677,0.002,2744.9,2744.6,1.67731551]
[1764610952877,0.002,2745.2,2744.6,1.67731551]
[1764610953201,0.002,2745.2,2745.1,11.51829867]
[1764610953378,0.002,2745.2,2745.1,12.09729867]
[1764610953702,0.002,2745.2,2745.1,15.74015321]
[1764610954794,0.002,2746.8,2745.2,1.13109811]
[1764610955108,0.002,2746.8,2746.7,10.38720056]
[1764610955307,0.002,2746.8,2746.7,0.579]
[1764610955509,0.002,2746.8,2746.7,15.33252718]
[1764610956008,0.002,2746.8,2746.7,15.47840689]
[1764610956305,0.002,2746.8,2746.7,15.88391089]
[1764610956611,0.002,2746.8,2746.7,17.83638815]
[1764610957107,0.002,2746.8,2746.7,7.04368359]
[1764610957338,0.002,2746.8,2746.7,5.49671033]
[1764610957673,0.002,2746.8,2746.7,5.09120633]
[1764610958102,0.002,2746.8,2746.7,4.94532662]
[1764610960600,0.002,2746.8,2746.7,5.35083062]
[1764610961810,0.002,2746.8,2745.7,10.92617547]
[1764610962027,0.002,2746.8,2745.8,1.30459411]
[1764610962229,0.002,2746.8,2745.8,0.579]
[1764610962710,0.002,2746.8,2745.8,1.30459411]
[1764610964829,0.002,2746.8,2745.9,7.28358642]
[1764610965029,0.002,2746.8,2746.0,1.94859436]
[1764610965240,0.002,2746.8,2746.0,12.33579492]
[1764610965439,0.002,2746.8,2746.1,0.405504]
[1764610965640,0.002,2746.8,2746.5,0.72559411]
[1764610965801,0.002,2746.8,2746.6,0.579]
[1764610967129,0.002,2746.8,2746.7,4.36632662]
[1764610967471,0.002,2746.8,2746.7,5.22494428]
[1764610972474,0.002,2746.8,2746.7,5.63044828]
[1764610974152,0.002,2746.8,2746.7,6.20944828]
[1764610976992,0.002,2747.1,2746.9,0.405504]
[1764610977294,0.002,2747.1,2747.0,10.79270456]
[1764610977497,0.002,2747.1,2747.0,11.94453443]
[1764610978995,0.002,2747.1,2747.0,15.58486934]
[1764610981474,1e-08,2747.7,2747.1,1.13109811]
[1764610981672,1e-08,2747.7,2747.6,11.51829867]
[1764610981863,1e-08,2747.7,2747.6,13.24912854]
[1764610982066,1e-08,2747.7,2747.6,1.87742398]
[1764610982264,1e-08,2747.7,2747.6,0.579]
[1764610983022,1e-08,2747.7,2747.6,4.21853996]
[1764610983696,1e-08,2747.7,2747.0,4.79216478]
[1764610983697,1e-08,2747.7,2747.0,1.15182987]
[1764610983897,1e-08,2747.7,2747.1,0.578]
[1764610985019,1e-08,2747.7,2747.2,7.28013976]
[1764610985616,1e-08,2747.7,2747.2,3.64006988]
[1764610985994,1e-08,2747.7,2747.1,4.21813776]
[1764610986419,1e-08,2747.7,2747.1,4.63995154]
[1764610986624,1e-08,2747.7,2747.1,8.28015393]
[1764610988013,1e-08,2747.7,2747.1,4.21813776]
[1764610988433,1e-08,2747.7,2747.1,7.85834015]
[1764610989623,1e-08,2747.7,2747.2,0.72559411]
[1764610991236,1e-08,2747.7,2747.3,7.27987478]
[1764610991933,1e-08,2747.7,2747.3,10.91981217]
[1764610992134,1e-08,2747.7,2747.4,1.09198122]
[1764610992323,1e-08,2747.7,2747.5,0.578]
[1764610992735,1e-08,2747.7,2747.6,0.72559411]
[1764610992934,1e-08,2747.7,2747.5,10.96520056]
[1764610992935,1e-08,2747.7,2747.5,0.578]
[1764610993143,1e-08,2747.7,2747.6,0.23955753]
[1764610993338,1e-08,2747.7,2747.6,4.6046916]
[1764610999834,1e-08,2747.7,2747.6,0.23955753]
[1764611000033,1e-08,2747.7,2747.6,3.63953996]
[1764611000864,1e-08,2747.7,2747.5,4.94324643]
[1764611000865,1e-08,2747.7,2747.5,7.85733767]
[1764611002067,1e-08,2747.7,2747.5,4.21766525]
[1764611003763,1e-08,2747.7,2747.5,7.85733767]
[1764611004337,1e-08,2747.7,2747.5,4.21766525]
[1764611004534,1e-08,2747.7,2747.5,5.0034029]
[1764611005083,1e-08,2747.7,2747.5,1.36373765]
[1764611005284,1e-08,2747.7,2747.5,0.578]
[1764611005451,1e-08,2747.7,2747.5,4.21766871]
[1764611006397,1e-08,2747.7,2747.5,7.85734113]
[1764611006685,1e-08,2747.7,2747.6,0.72559411]
[1764611006865,1e-08,2747.7,2747.6,1.58388763]
[1764611007752,1e-08,2747.7,2747.6,5.22342759]
[1764611013593,1e-08,2747.7,2747.6,0.85829352]
[1764611013773,1e-08,2747.7,2747.6,4.21753996]
[1764611013971,1e-08,2747.7,2747.6,0.578]
[1764611018164,1e-08,2747.7,2747.6,4.21753996]
[1764611018372,1e-08,2747.7,2747.6,0.578]
[1764611018910,1e-08,2747.7,2747.6,4.21753996]
[1764611019071,1e-08,2747.7,2747.6,0.578]
[1764611024617,1e-08,2747.7,2747.6,4.21753996]
[1764611024800,1e-08,2747.7,2747.6,5.00335953]
[1764611025533,1e-08,2747.7,2747.6,1.36381957]
[1764611025737,1e-08,2747.7,2747.6,0.578]
[1764611027715,1e-08,2747.7,2747.6,4.21753996]
[1764611027897,1e-08,2747.7,2747.6,0.578]
[1764611028412,1e-08,2747.7,2747.6,4.21753996]
[1764611028725,1e-08,2747.7,2747.6,5.00335325]
[1764611028908,1e-08,2747.7,2747.6,5.14920903]
[1764611031615,1e-08,2747.7,2747.6,1.36381329]
[1764611031825,1e-08,2747.7,2747.6,0.578]
[1764611032490,1e-08,2747.7,2747.6,5.85123658]
[1764611032693,0.002,2748.3,2747.7,1.13109811]
[1764611032897,0.002,2748.3,2748.2,11.63301711]
[1764611033099,0.002,2748.3,2748.2,12.21101711]
[1764611033398,0.002,2748.3,2748.2,13.43211882]
[1764611033591,0.002,2748.3,2748.2,2.52469582]
[1764611033794,0.002,2748.3,2748.2,1.70909811]
[1764611034705,0.002,2748.3,2748.2,5.34784347]
[1764611037448,3.63609117,2750.3,2748.3,0.72559411]
[1764611037642,10.501919,2751.1,2748.3,0.72559411]
[1764611037643,3.63527605,2750.9,2748.6,11.63301711]
[1764611037797,3.63527605,2750.9,2748.6,13.37431882]
[1764611038121,0.72559411,2750.5,2748.6,13.37431882]
[1764611038315,0.72559411,2751.0,2748.6,13.37431882]
[1764611038705,4.21293864,2751.1,2748.6,13.37431882]
[1764611038915,3.63519412,2750.9,2748.6,17.01253463]
[1764611039232,0.72559411,2750.8,2748.6,18.1056558]
[1764611039998,7.99567771,2751.0,2748.6,18.1056558]
[1764611040202,7.2700836,2751.0,2748.7,1.13109811]
[1764611040406,3.6350418,2751.0,2749.2,1.13109811]
[1764611040649,3.63392828,2751.9,2748.7,1.24985929]
[1764611040650,0.57026069,2752.0,2749.7,1.13109811]
[1764611040801,0.36344197,2751.7,2749.8,0.578]
[1764611041005,0.36344197,2751.7,2750.0,0.72559411]
[1764611041006,7.26849832,2751.6,2750.0,0.72559411]
[1764611041304,0.36344197,2751.7,2750.1,1.74250817]
[1764611041305,0.86289813,2751.5,2750.1,1.74250817]
[1764611041506,0.0997041,2751.5,2750.1,1.74250817]
[1764611041810,0.36344197,2751.4,2750.1,1.74250817]
[1764611043125,3.63464544,2751.3,2750.2,7.27219838]
[1764611043328,3.63464544,2751.3,2750.2,11.88232764]
[1764611043637,0.36344197,2751.6,2750.2,8.24622845]
[1764611044411,0.405504,2751.5,2750.2,4.61012926]
[1764611045447,7.26902666,2751.4,2750.2,4.61012926]
[1764611045739,0.76745307,2751.3,2750.2,8.24622845]
[1764611047435,3.63477755,2751.2,2750.2,8.24622845]
[1764611047649,7.2695551,2751.2,2750.2,7.27219838]
[1764611047843,4.40212964,2751.3,2750.2,12.00112009]
[1764611048343,8.03680621,2751.3,2750.2,8.3650209]
[1764611048543,0.76745307,2751.3,2750.2,8.3650209]
[1764611048735,3.63457826,2751.4,2750.3,1.25801952]
[1764611048914,0.002,2751.3,2750.3,1.25801952]
[1764611049113,0.002,2751.3,2750.3,1.98361363]
[1764611049526,0.002,2751.3,2750.5,0.72559411]
[1764611049730,0.002,2751.3,2750.6,0.578]
[1764611049928,0.002,2751.3,2750.7,0.72559411]
[1764611050128,0.002,2751.3,2750.8,1.18055131]
[1764611050350,0.002,2751.3,2750.8,1.32620314]
[1764611051436,0.002,2751.3,2750.9,0.578]
[1764611051628,0.002,2751.3,2750.9,4.21317394]
[1764611051947,0.002,2751.3,2750.9,0.578]
[1764611052149,0.002,2751.3,2750.9,4.21317295]
[1764611052350,0.002,2751.3,2750.9,0.578]
[1764611052518,0.002,2751.3,2750.9,4.21314669]
[1764611052719,0.002,2751.3,2750.9,0.578]
[1764611053119,0.002,2751.3,2750.9,7.84829957]
[1764611053330,0.002,2751.3,2750.9,4.21312563]
[1764611053734,0.002,2751.3,2750.9,0.578]
[1764611053916,0.002,2751.3,2750.3,11.75993852]
[1764611053917,0.002,2751.3,2750.3,1.25801952]
[1764611054254,0.002,2751.3,2750.4,0.578]
[1764611054454,0.407504,2751.3,2750.4,0.578]
[1764611054653,0.36344197,2751.1,2750.4,0.578]
[1764611054820,0.36344197,2750.8,2750.0,0.578]
[1764611055824,3.63543825,2750.7,2750.1,3.6362314]
[1764611056045,8.03429562,2750.7,2750.0,4.21434243]
[1764611056354,4.39885737,2750.7,2750.0,4.21434243]
[1764611057060,0.76341912,2750.7,2750.0,7.85070606]
[1764611057224,3.63530724,2750.8,2750.0,7.85070606]
[1764611057557,0.002,2751.3,2750.1,0.72559411]
[1764611057857,0.72759411,2751.3,2750.2,10.90829757]
[1764611058164,0.72759411,2751.3,2750.3,1.16338917]
[1764611058359,0.002,2751.3,2750.4,0.578]
[1764611059138,0.002,2751.3,2750.5,10.33134729]
[1764611059651,0.002,2751.3,2750.5,11.42391111]
[1764611059851,0.002,2751.3,2750.8,0.72559411]
[1764611060057,0.002,2751.3,2750.9,0.578]
[1764611062063,0.002,2751.3,2750.9,4.21313795]
[1764611062239,0.002,2751.3,2750.8,0.578]
[1764611063172,0.0997041,2751.2,2750.4,0.72559411]
[1764611063477,0.0997041,2751.2,2750.5,0.578]
[1764611063643,0.002,2751.3,2750.5,0.578]
[1764611064164,0.002,2751.3,2750.6,3.63557042]
[1764611064461,0.002,2751.3,2750.6,7.27114084]
[1764611064668,0.002,2751.3,2750.6,10.90671126]
[1764611064879,0.002,2751.3,2750.7,1.14847113]
[1764611065542,0.002,2751.3,2750.7,1.87406524]
[1764611065840,0.002,2751.3,2750.8,0.14566721]
[1764611066035,0.002,2751.3,2750.9,0.578]
[1764611066255,0.002,2751.3,2751.0,7.2700836]
[1764611066454,0.002,2751.3,2751.1,0.78480836]
[1764611068949,0.002,2751.3,2751.2,3.63477755]
[1764611072544,0.002,2751.3,2751.2,3.78042938]
[1764611076215,0.002,2751.3,2751.2,15.24287478]
[1764611076400,0.002,2751.6,2751.2,15.24287478]
[1764611076401,0.002,2751.6,2751.3,1.13109811]
[1764611076603,0.002,2751.9,2751.5,0.72559411]
[1764611076781,0.002,2751.9,2751.8,11.4624454]
[1764611077109,0.002,2751.9,2751.8,12.0404454]
[1764611077301,0.002,2751.9,2751.8,1.30359411]
[1764611077811,0.002,2751.9,2751.8,0.578]
[1764611078316,0.002,2751.9,2751.8,0.81754978]
[1764611078606,0.002,2751.9,2751.8,4.4515348]
[1764611079516,0.002,2751.9,2751.8,0.81754978]
[1764611079716,0.002,2751.9,2751.8,0.578]
[1764611081448,0.002,2751.9,2751.5,0.578]
[1764611081615,0.002,2751.9,2751.6,0.578]
[1764611084056,0.002,2751.9,2751.4,3.63551124]
[1764611084057,0.002,2751.9,2751.4,0.001]
[1764611084250,0.0997041,2751.8,2751.4,0.001]
[1764611085021,0.002,2751.9,2751.4,0.579]
[1764611087145,0.002,2751.9,2751.5,3.63438124]
[1764611088163,0.002,2751.9,2751.4,4.21344681]
[1764611088466,0.002,2751.9,2751.4,4.63480254]
[1764611089147,0.002,2751.9,2751.4,8.26931587]
[1764611089574,0.002,2751.9,2751.4,4.63480254]
[1764611090662,0.002,2751.9,2751.4,8.26931587]
[1764611090970,0.002,2751.9,2751.5,0.82693159]
[1764611091267,0.002,2751.9,2751.6,3.63424916]
[1764611092139,0.002,2751.9,2751.6,7.26849832]
[1764611092543,0.002,2751.9,2751.7,0.72559411]
[1764611092761,0.002,2751.9,2751.8,0.578]
[1764611092963,0.002,2751.9,2751.8,1.43520924]
[1764611093456,0.002,2751.9,2751.8,5.06919426]
[1764611095374,0.002,2751.9,2751.8,5.79478837]
[1764611096447,0.002,2751.9,2751.8,6.20029237]
[1764611097644,0.002,2751.9,2751.8,5.21678837]
[1764611097849,0.002,2751.9,2751.8,5.07019426]
[1764611098068,0.002,2751.9,2751.8,5.79578837]
[1764611098272,0.002,2751.9,2751.8,0.85720924]
[1764611098479,0.002,2751.9,2751.8,0.579]
[1764611099582,0.002,2751.9,2751.8,4.21298502]
[1764611099755,0.002,2751.9,2751.8,4.93857913]
[1764611100881,0.002,2751.9,2751.8,5.34408313]
[1764611101571,0.002,2751.9,2751.8,4.35957913]
[1764611101775,0.002,2751.9,2751.8,4.93857913]
[1764611101975,0.002,2751.9,2751.8,5.79584691]
[1764611106435,0.002,2751.9,2751.8,6.20135091]
[1764611107807,0.002,2751.9,2751.8,5.79584691]
[1764611108686,0.002,2751.9,2751.8,6.20135091]
[1764611109691,3.63148083,2753.7,2751.9,1.13109811]
[1764611109907,16.57899999,2753.9,2752.4,0.72559411]
[1764611109908,3.63139215,2753.8,2752.4,0.72559411]
[1764611110209,3.63139215,2753.8,2752.1,0.405504]
[1764611110210,0.579,2754.4,2752.8,10.33134729]
[1764611110442,0.36344197,2754.4,2752.9,2.33772884]
[1764611111198,0.36344197,2754.4,2752.9,1.61213473]
[1764611111394,0.36344197,2754.4,2752.9,0.579]
[1764611111794,7.26137312,2754.3,2753.0,10.89720303]
[1764611112037,0.72559411,2754.2,2753.0,10.89720303]
[1764611112705,0.36344197,2754.6,2753.1,0.72559411]
[1764611112909,0.0997041,2754.3,2753.1,0.72559411]
[1764611113111,0.0997041,2754.3,2753.1,2.61566845]
[1764611113310,0.0997041,2754.3,2753.1,0.72559411]
[1764611113604,0.0997041,2754.0,2752.9,4.21148926]
[1764611113927,3.63121391,2753.9,2752.9,7.84402222]
[1764611114832,7.26242782,2753.9,2752.9,0.579]
[1764611115038,3.99465588,2753.9,2752.9,7.84404938]
[1764611115331,0.76257851,2753.8,2752.9,7.84404938]
[1764611115637,0.405504,2754.3,2753.0,0.72559411]
[1764611115930,3.63081838,2754.2,2753.1,7.26453814]
[1764611116139,3.73052248,2754.2,2753.1,7.26453814]
[1764611116632,7.36134086,2754.2,2753.1,7.26453814]
[1764611116935,0.77668449,2754.1,2753.1,7.26453814]
[1764611117968,7.26143966,2754.3,2753.1,7.26453814]
[1764611118274,7.62488163,2754.3,2753.1,10.89680721]
[1764611118478,3.9941618,2754.3,2753.1,10.89680721]
[1764611118641,0.405504,2754.7,2753.2,0.72559411]
[1764611118840,0.56958892,2755.1,2753.5,0.72559411]
[1764611119039,3.62912796,2755.5,2753.9,0.72559411]
[1764611119271,3.62912796,2755.5,2754.0,0.579]
[1764611119559,3.51697821,2755.4,2754.0,0.579]
[1764611120151,0.002,2754.3,2754.2,11.0569414]
[1764611120339,0.002,2754.3,2754.2,0.72559411]
[1764611121158,0.002,2754.3,2754.2,1.71009811]
[1764611121474,0.002,2754.3,2754.2,3.65189497]
[1764611123788,0.002,2754.3,2754.2,4.35641249]
[1764611124084,0.002,2754.3,2754.2,4.20981838]
[1764611124453,0.002,2754.3,2753.9,3.63121391]
[1764611124653,0.002,2754.3,2754.0,0.579]
[1764611125477,0.002,2754.3,2753.9,7.26242782]
[1764611125687,0.002,2754.3,2754.1,0.579]
[1764611126288,0.002,2754.3,2754.2,3.63081838]
[1764611126782,0.002,2754.3,2754.2,0.579]
[1764611128276,0.002,2754.3,2754.2,4.20981838]
[1764611128477,0.002,2754.3,2754.2,3.63081838]
[1764611128894,0.002,2754.3,2754.2,4.20981838]
[1764611129189,0.002,2754.3,2754.0,3.63103535]
[1764611129392,0.002,2754.3,2754.1,0.579]
[1764611129694,0.002,2754.3,2754.2,0.579]
[1764611130286,0.002,2754.3,2754.2,4.20981838]
[1764611130882,0.002,2754.3,2754.2,0.579]
[1764611131482,0.002,2754.3,2754.2,4.20981838]
[1764611132162,0.002,2754.3,2754.2,0.579]
[1764611132369,0.002,2754.3,2754.2,4.20981838]
[1764611133377,0.002,2754.3,2754.2,5.71948861]
[1764611135201,0.002,2754.3,2754.2,3.63081838]
[1764611135370,0.002,2754.3,2754.2,4.20881838]
[1764611138102,0.002,2754.3,2754.2,3.63081838]
[1764611138302,0.002,2754.3,2754.2,4.20881838]
[1764611138475,0.002,2754.3,2754.2,3.63081838]
[1764611138803,0.002,2754.3,2754.2,4.9349945]
[1764611139375,0.002,2754.3,2754.2,5.66058861]
[1764611143394,0.002,2754.3,2754.2,6.38618272]
[1764611146109,0.002,2754.3,2754.2,5.80818272]
[1764611146412,0.002,2754.3,2754.2,6.38618272]
[1764611146612,0.002,2754.3,2754.2,5.6600066]
[1764611150488,0.002,2754.3,2754.2,6.0655106]
[1764611150803,400.0,2755.6,2754.4,0.405504]
[1764611151103,400.0,2755.6,2755.3,0.72559411]
[1764611151313,400.0,2755.6,2755.4,1.16140958]
[1764611151704,400.0,2755.6,2755.5,1.66871672]
[1764611152085,400.0,2755.6,2755.5,1.09071672]
[1764611152282,400.0,2755.6,2755.5,1.66871672]
[1764611152595,400.0,2755.6,2755.5,1.09071672]
[1764611152791,403.51697821,2755.6,2755.5,0.578]
[1764611153111,400.0,2755.6,2755.5,0.578]
[1764611153700,400.0,2755.6,2755.3,3.62932745]
[1764611154009,400.0,2755.6,2755.4,0.578]
[1764611155514,400.0,2755.6,2755.4,4.20721471]
[1764611155811,400.0,2755.6,2755.4,7.83645184]
[1764611156018,400.0,2755.6,2755.5,0.78364518]
[1764611156684,400.0,2755.6,2755.5,1.50923929]
[1764611157413,142.94527651,2755.6,2755.5,15.20617357]
[1764611161086,142.94527651,2755.6,2755.0,10.44597004]
[1764611161291,142.94527651,2755.6,2755.5,1.09055614]
[1764611161519,142.94527651,2755.6,2754.3,3.63164915]
[1764611161520,146.46225472,2755.6,2754.3,3.63164915]
[1764611161721,153.72022982,2755.6,2754.7,1.09098645]
[1764611161917,153.72022982,2755.6,2754.8,0.578]
[1764611162097,146.46225472,2755.6,2754.8,0.578]
[1764611162515,142.94527651,2755.6,2754.8,0.578]
[1764611163718,142.94527651,2755.6,2754.8,4.93357868]
[1764611164015,142.94527651,2755.6,2754.8,0.578]
[1764611164523,142.94527651,2755.6,2754.8,1.30359411]
[1764611165027,146.57429658,2755.6,2754.7,1.09098645]
[1764611165193,3.51697821,2755.5,2754.9,0.578]
[1764611165390,7.14615142,2755.5,2754.9,0.578]
[1764611165823,14.40449784,2755.5,2754.9,0.578]
[1764611166020,14.40449784,2755.5,2754.3,0.579]
[1764611166021,1.13109811,2755.4,2754.3,0.579]
[1764611166328,0.405504,2754.8,2754.3,0.579]
[1764611166820,0.36344197,2754.8,2754.3,0.579]
[1764611167021,0.405504,2754.4,2754.3,0.001]
[1764611167219,0.5052081,2754.4,2754.3,0.001]
[1764611167422,4.86135695,2754.4,2754.3,0.001]
[1764611167625,5.76843576,2754.4,2754.3,0.001]
[1764611167831,5.66873166,2754.4,2754.3,0.001]
[1764611168131,4.76165285,2754.4,2754.3,0.001]
[1764611168420,4.86135695,2754.4,2754.3,0.001]
[1764611168625,4.76165285,2754.4,2754.3,0.001]
[1764611169034,4.03605874,2754.4,2754.3,0.001]
[1764611169404,4.39950071,2754.4,2754.3,0.001]
[1764611169727,5.20249376,2754.4,2754.3,0.001]
[1764611170596,1.57193902,2754.4,2754.3,0.001]
[1764611170808,0.0997041,2754.9,2754.3,0.001]
[1764611171008,0.405504,2754.8,2754.3,0.001]
[1764611171212,0.0997041,2754.5,2754.3,0.001]
[1764611171500,4.03605874,2754.4,2754.3,0.001]
[1764611171714,4.812678,2754.4,2754.3,0.001]
[1764611172212,5.63797621,2754.4,2754.3,0.001]
[1764611172524,5.73768032,2754.4,2754.3,0.001]
[1764611175218,5.90171408,2754.4,2754.3,0.001]
[1764611178826,4.35614885,2754.4,2754.3,0.001]
[1764611179133,3.63049916,2754.5,2754.3,0.001]
[1764611179310,3.63025715,2754.7,2754.3,0.001]
[1764611179311,3.630183,2754.7,2754.3,0.001]
[1764611179512,0.36344197,2755.0,2754.3,0.001]
[1764611179823,1.08903608,2755.0,2754.3,0.001]
[1764611180136,0.72559411,2755.0,2754.3,0.001]
[1764611180442,0.56947278,2755.2,2754.3,0.001]
[1764611180443,3.62950804,2755.2,2754.3,0.001]
[1764611180812,3.51697821,2755.5,2754.3,0.001]
[1764611180813,3.62910542,2755.5,2754.3,0.001]
[1764611181020,1.13109811,2755.4,2754.3,0.001]
[1764611181533,11.13863102,2755.5,2754.3,0.001]
[1764611181759,142.94527651,2755.6,2754.3,0.001]
[1764611182037,146.57430868,2755.6,2754.3,0.001]
[1764611182237,0.72559411,2755.5,2754.3,0.001]
[1764611182538,142.94527651,2755.6,2754.3,0.72659411]
[1764611182739,142.94527651,2755.6,2754.5,0.72559411]
[1764611183847,142.94527651,2755.6,2754.6,7.26058228]
[1764611184215,142.94527651,2755.6,2754.6,3.63029114]
[1764611184420,142.94527651,2755.6,2754.7,0.579]
[1764611185836,142.94527651,2755.6,2754.8,0.72559411]
[1764611186815,142.94527651,2755.6,2754.8,11.03042685]
[1764611187128,142.94527651,2755.6,2755.3,0.72559411]
[1764611187333,142.94527651,2755.6,2754.9,0.72559411]
[1764611187509,142.94527651,2755.6,2755.0,0.579]
[1764611187706,142.94527651,2755.6,2755.0,4.20869478]
[1764611188136,142.94527651,2755.6,2755.0,7.83845884]
[1764611188349,142.94527651,2755.6,2755.1,0.579]
[1764611189211,142.94527651,2755.6,2754.5,0.72559411]
[1764611189440,142.94527651,2755.6,2755.1,1.09089123]
[1764611189742,142.94527651,2755.6,2755.2,0.579]
[1764611191344,142.94527651,2755.6,2755.5,11.03042685]
[1764611191345,133.93339941,2755.6,2755.5,11.03042685]
[1764611191637,121.2052922,2755.6,2755.5,12.17794565]
[1764611191836,121.2052922,2755.6,2755.5,15.80705107]
[1764611192209,121.2052922,2755.6,2755.5,15.06503627]
[1764611192410,114.30038144,2755.6,2755.5,15.06503627]
[1764611192607,112.1934151,2755.6,2755.5,15.06503627]
[1764611192837,0.24640008,2757.7,2755.6,1.13109811]
[1764611193038,0.24640008,2757.7,2756.5,0.72559411]
[1764611193206,0.24640008,2757.7,2756.6,0.581]
[1764611193409,3.87261032,2757.7,2756.6,0.581]
[1764611193610,4.25989901,2757.7,2756.7,1.09016975]
[1764611193841,7.88613691,2757.7,2756.7,1.09016975]
[1764611196845,8.24957888,2757.7,2756.7,1.09016975]
[1764611197445,0.405504,2757.6,2756.7,1.09016975]
[1764611197645,0.86550829,2757.5,2756.8,0.58]
[1764611197961,7.25320954,2757.4,2756.0,10.30483274]
[1764611198261,7.25320954,2757.4,2756.4,1.09016975]
[1764611198262,0.0997041,2757.0,2756.4,1.09016975]
[1764611198417,0.405504,2756.9,2756.1,0.58]
[1764611200069,0.0997041,2756.9,2756.0,0.58]
[1764611202020,1.13109811,2756.7,2756.0,0.58]
[1764611202220,0.405504,2756.5,2756.0,0.58]
[1764611204456,7.25584094,2756.4,2756.0,0.58]
[1764611204652,3.62792047,2756.4,2756.0,0.58]
[1764611204843,7.25584094,2756.4,2756.0,0.58]
[1764611205440,3.62792047,2756.4,2756.0,0.58]
[1764611205621,0.40334245,2756.3,2756.0,0.58]
[1764611206055,4.03302966,2756.7,2756.0,0.58]
[1764611206256,7.66059129,2756.7,2756.0,0.58]
[1764611207432,11.28815292,2756.7,2756.0,0.58]
[1764611207644,11.65159489,2756.7,2756.0,0.58]
[1764611207857,0.405504,2756.5,2756.0,0.58]
[1764611208146,0.405504,2756.5,2754.1,10.30483274]
[1764611208348,0.405504,2756.0,2754.2,3.63081578]
[1764611208547,0.405504,2755.8,2754.4,0.58]